bitfinex/quotes_SOLUSD_20220104
["timestamp","ask_amount","ask_price","bid_price","bid_amount"]
[1641334955413,1.7964,168.57,168.48,26.6829]
[1641334957019,2.0564,168.57,168.48,26.6829]
[1641334957217,2.0564,168.57,168.48,26.9429]
[1641334962919,2.0564,168.57,168.48,26.6829]
[1641334964321,2.0564,168.57,168.48,26.9429]
[1641334965820,2.0564,168.57,168.48,26.6829]
[1641334972434,1.7964,168.57,168.48,26.6829]
[1641334973031,1.7964,168.57,168.48,26.9429]
[1641334973831,2.0564,168.57,168.48,26.9429]
[1641334974835,2.0564,168.57,168.48,26.6829]
[1641334976636,2.0564,168.57,168.48,26.9429]
[1641334977235,1.7964,168.57,168.48,26.9429]
[1641334977436,1.7964,168.57,168.48,26.6829]
[1641334977835,1.7964,168.57,168.48,26.9429]
[1641334978236,1.2964,168.57,168.48,26.9429]
[1641334978435,1.7964,168.57,168.48,26.9429]
[1641334978637,2.0564,168.57,168.48,26.9429]
[1641334983037,1.5564,168.57,168.48,26.9429]
[1641334997080,1.5564,168.57,168.48,26.6829]
[1641335000481,1.5564,168.57,168.48,26.1829]
[1641335000885,1.5564,168.57,168.48,24.865]
[1641335001286,1.5564,168.57,168.44,1.2687]
[1641335001482,1.44850786,168.56,168.44,1.2687]
[1641335001881,2.20850786,168.56,168.44,1.2687]
[1641335002110,2.20850786,168.56,168.44,1.7687]
[1641335002682,1.3574,168.55,168.44,1.7687]
[1641335002882,1.8574,168.55,168.44,1.7687]
[1641335003082,2.1174,168.55,168.44,1.7687]
[1641335005989,3.56590786,168.55,168.44,1.2687]
[1641335006192,3.56590786,168.55,168.42,23.1372]
[1641335006391,22.723,168.54,168.42,24.4833]
[1641335006587,22.983,168.54,168.42,24.4833]
[1641335006789,24.93150786,168.54,168.42,24.4833]
[1641335007488,24.93150786,168.54,168.42,24.9833]
[1641335007689,8.33991826,168.52,168.42,24.9833]
[1641335007887,23.4136,168.51,168.42,24.9833]
[1641335008089,23.6736,168.51,168.42,24.9833]
[1641335008288,24.1736,168.51,168.42,24.9833]
[1641335010413,0.76,168.51,168.42,24.9833]
[1641335010615,9.09991826,168.52,168.42,24.9833]
[1641335011016,0.5,168.52,168.42,56.90583278]
[1641335011316,23.6526,168.55,168.42,57.16583278]
[1641335011716,1.2736,168.57,168.42,57.16583278]
[1641335012116,26.88545842,168.56,168.42,57.16583278]
[1641335014220,27.38545842,168.56,168.42,57.16583278]
[1641335015222,27.38545842,168.56,168.42,56.90583278]
[1641335015723,27.64545842,168.56,168.42,56.90583278]
[1641335015924,23.8874,168.55,168.42,56.90583278]
[1641335016323,24.6474,168.55,168.42,56.90583278]
[1641335016924,24.6474,168.55,168.42,57.16583278]
[1641335017125,1.3245,168.54,168.42,57.16583278]
[1641335017425,1.8245,168.54,168.42,57.16583278]
[1641335017626,2.0845,168.54,168.42,57.16583278]
[1641335018027,1.8245,168.54,168.42,57.16583278]
[1641335023232,2.0845,168.54,168.42,57.16583278]
[1641335023432,1.8245,168.54,168.42,57.16583278]
[1641335023833,2.0845,168.54,168.42,57.16583278]
[1641335025334,1.8245,168.54,168.42,57.16583278]
[1641335026233,0.5,168.54,168.42,57.16583278]
[1641335026433,24.3874,168.55,168.42,57.16583278]
[1641335027535,24.6474,168.55,168.42,57.16583278]
[1641335029435,25.9114,168.55,168.42,57.16583278]
[1641335036872,25.6514,168.55,168.42,57.16583278]
[1641335038072,25.9114,168.55,168.42,57.16583278]
[1641335039473,25.9114,168.55,168.42,24.9833]
[1641335039677,25.6514,168.55,168.42,24.9833]
[1641335040976,25.9114,168.55,168.42,25.2433]
[1641335048687,27.35990786,168.55,168.42,25.2433]
[1641335049586,36.42470786,168.55,168.42,25.2433]
[1641335049787,36.16470786,168.55,168.42,25.2433]
[1641335050987,36.42470786,168.55,168.42,25.2433]
[1641335053590,27.35990786,168.55,168.42,25.2433]
[1641335059396,27.09990786,168.55,168.42,25.2433]
[1641335061095,27.35990786,168.55,168.42,25.2433]
[1641335063899,36.11750786,168.55,168.42,25.2433]
[1641335072638,36.11750786,168.55,168.42,24.9833]
[1641335074045,36.11750786,168.55,168.42,25.2433]
[1641335076943,36.11750786,168.55,168.42,24.7433]
[1641335081883,36.11750786,168.55,168.42,25.2433]
[1641335082182,36.11750786,168.55,168.42,24.7433]
[1641335084390,36.11750786,168.55,168.42,25.2433]
[1641335084587,34.669,168.55,168.42,25.2433]
[1641335084988,34.409,168.55,168.42,24.7433]
[1641335085188,34.409,168.55,168.42,25.2433]
[1641335086488,34.669,168.55,168.42,25.2433]
[1641335091394,34.409,168.55,168.42,25.2433]
[1641335092899,34.669,168.55,168.42,24.7433]
[1641335095402,36.31531279,168.55,168.42,24.7433]
[1641335096607,27.55771279,168.55,168.42,24.7433]
[1641335097606,27.55771279,168.55,168.42,24.4833]
[1641335097808,27.55771279,168.55,168.39,23.5954]
[1641335098007,27.55771279,168.55,168.35,104.2963]
[1641335098008,34.50273353,168.55,168.35,104.2963]
[1641335098206,9.20052578,168.54,168.35,104.2963]
[1641335098407,9.70052578,168.54,168.35,104.2963]
[1641335098606,7.30108476,168.53,168.35,24.5209]
[1641335098806,23.0795,168.52,168.35,24.5209]
[1641335099007,1.2419,168.51,168.35,24.5209]
[1641335099208,8.54298476,168.51,168.35,24.5209]
[1641335099408,24.655,168.5,168.33,1.2646]
[1641335099633,10.09117395,168.49,168.33,1.2646]
[1641335099933,23.3481,168.48,168.33,25.5704]
[1641335100132,23.3481,168.48,168.33,25.0704]
[1641335100337,24.1081,168.48,168.33,25.5704]
[1641335100535,8.9125,168.47,168.33,25.5704]
[1641335100835,1.8669,168.47,168.33,25.5704]
[1641335101336,1.8669,168.47,168.34,1.2977]
[1641335101534,1.8669,168.47,168.34,1.5577]
[1641335101734,1.8669,168.47,168.34,2.0577]
[1641335102134,2.1269,168.47,168.34,2.0577]
[1641335103236,2.1269,168.47,168.34,1.7977]
[1641335103434,1.8669,168.47,168.34,1.7977]
[1641335103634,15.50120299,168.46,168.34,1.7977]
[1641335103835,16.00120299,168.46,168.34,1.7977]
[1641335104534,16.26120299,168.46,168.34,2.0577]
[1641335104734,16.26120299,168.46,168.34,1.5577]
[1641335104936,0.76,168.46,168.34,1.5577]
[1641335105336,17.30565903,168.47,168.34,1.5577]
[1641335105539,17.56565903,168.47,168.34,1.5577]
[1641335105738,23.5417,168.46,168.34,1.5577]
[1641335105938,24.3017,168.46,168.34,1.5577]
[1641335106140,24.3017,168.46,168.34,2.0577]
[1641335107442,24.0417,168.46,168.34,2.0577]
[1641335107641,1.2471,168.45,168.34,2.0577]
[1641335108844,2.0071,168.45,168.34,2.0577]
[1641335111446,2.0071,168.45,168.34,1.5577]
[1641335112247,2.0071,168.45,168.34,2.0577]
[1641335112447,2.0071,168.45,168.34,1.5577]
[1641335113048,2.0071,168.45,168.33,23.8058]
[1641335113252,2.0071,168.45,168.33,24.3058]
[1641335113448,2.0071,168.45,168.33,23.8058]
[1641335113648,2.0071,168.45,168.33,24.3058]
[1641335113848,2.0071,168.45,168.33,23.8058]
[1641335114448,2.0071,168.45,168.33,24.0658]
[1641335115050,2.0071,168.45,168.33,23.8058]
[1641335115351,3.45560786,168.45,168.33,23.8058]
[1641335116049,3.45560786,168.45,168.32,76.3487]
[1641335116251,3.45560786,168.45,168.32,76.8487]
[1641335117751,3.45560786,168.45,168.33,23.4507]
[1641335118149,3.45560786,168.45,168.33,23.7107]
[1641335118554,2.0071,168.45,168.33,23.7107]
[1641335121857,2.0071,168.45,168.33,23.4507]
[1641335125760,2.0071,168.45,168.34,1.3534]
[1641335125993,3.45560786,168.45,168.34,1.3534]
[1641335128194,12.36920786,168.45,168.34,1.3534]
[1641335132093,3.45560786,168.45,168.34,1.3534]
[1641335133194,8.9142,168.44,168.33,23.4507]
[1641335133393,9.4142,168.44,168.33,23.4507]
[1641335133596,9.6742,168.44,168.33,23.4507]
[1641335133794,26.88545842,168.42,168.33,23.4507]
[1641335133994,1.3113,168.41,168.33,23.4507]
[1641335134396,2.0713,168.41,168.33,23.4507]
[1641335135297,1.8113,168.41,168.33,23.4507]
[1641335135496,0.5,168.41,168.33,23.4507]
[1641335135896,27.38545842,168.42,168.33,23.4507]
[1641335136898,27.64545842,168.42,168.33,23.4507]
[1641335138500,27.38545842,168.42,168.33,23.7107]
[1641335138901,27.38545842,168.42,168.33,24.2107]
[1641335139904,27.64545842,168.42,168.33,24.2107]
[1641335140103,0.76,168.42,168.33,24.2107]
[1641335140505,34.8816,168.46,168.33,24.2107]
[1641335140906,34.8816,168.46,168.34,1.2448]
[1641335141109,24.51082475,168.45,168.34,1.5048]
[1641335141406,25.01082475,168.45,168.34,2.0048]
[1641335141606,25.27082475,168.45,168.34,2.0048]
[1641335142207,25.27082475,168.45,168.34,1.5048]
[1641335142407,25.27082475,168.45,168.34,1.2448]
[1641335143506,1.3249,168.44,168.34,1.2448]
[1641335143908,1.8249,168.44,168.34,1.2448]
[1641335144910,2.0849,168.44,168.34,1.2448]
[1641335145509,2.0849,168.44,168.34,1.5048]
[1641335146411,2.0849,168.44,168.34,1.2448]
[1641335149012,2.0849,168.44,168.33,23.4507]
[1641335149013,10.9997,168.44,168.33,23.4507]
[1641335149210,3.53340786,168.44,168.33,23.4507]
[1641335149612,3.53340786,168.44,168.31,23.686]
[1641335150010,9.38598476,168.44,168.31,23.686]
[1641335150412,11.03229755,168.44,168.31,23.686]
[1641335150615,8.9154,168.42,168.31,23.686]
[1641335150816,24.5825,168.41,168.32,24.178]
[1641335151014,24.8425,168.41,168.32,24.178]
[1641335151220,25.3425,168.41,168.32,24.178]
[1641335151419,1.2411,168.4,168.28,1.2456]
[1641335151620,1.2411,168.4,168.28,0.7456]
[1641335151817,2.0011,168.4,168.28,1.2456]
[1641335152248,2.0011,168.4,168.28,26.1855]
[1641335152748,2.0011,168.4,168.28,25.6855]
[1641335153047,2.0011,168.4,168.26,1.2805]
[1641335153048,3.44960786,168.4,168.25,23.9173]
[1641335153251,83.70238476,168.4,168.25,25.2503]
[1641335153848,12.46580762,168.38,168.26,22.5262]
[1641335154049,12.72580762,168.38,168.26,22.5262]
[1641335154250,10.72580762,168.38,168.26,22.5262]
[1641335154850,10.72580762,168.38,168.26,22.7862]
[1641335155052,23.144,168.37,168.27,1.3338]
[1641335155453,23.904,168.37,168.27,1.3338]
[1641335155653,1.3014,168.36,168.27,1.3338]
[1641335155953,2.0614,168.36,168.27,1.3338]
[1641335160356,2.0614,168.36,168.26,22.5262]
[1641335162465,2.0614,168.36,168.27,1.3673]
[1641335162862,2.0614,168.36,168.27,0.8673]
[1641335164266,2.0614,168.36,168.26,22.5262]
[1641335165372,8.9194,168.35,168.22,1.3078]
[1641335165568,24.51082475,168.33,168.22,26.1735]
[1641335165768,23.5167,168.32,168.22,26.1735]
[1641335165967,24.2767,168.32,168.22,26.1735]
[1641335166767,24.0167,168.32,168.22,26.1735]
[1641335168070,24.2767,168.32,168.22,26.1735]
[1641335168372,25.5842,168.32,168.22,26.1735]
[1641335170674,25.5842,168.32,168.22,25.6735]
[1641335172079,25.5842,168.32,168.22,25.9335]
[1641335172579,1.8075,168.32,168.22,25.9335]
[1641335173180,0.5,168.32,168.22,25.9335]
[1641335173380,25.01082475,168.33,168.22,25.9335]
[1641335174582,25.27082475,168.33,168.22,25.9335]
[1641335176685,22.5581,168.32,168.22,25.9335]
[1641335176886,23.0581,168.32,168.22,25.9335]
[1641335177084,23.3181,168.32,168.22,25.9335]
[1641335178194,0.76,168.32,168.22,25.9335]
[1641335178412,0.26,168.32,168.22,25.9335]
[1641335178611,25.27082475,168.33,168.22,25.9335]
[1641335180011,25.27082475,168.33,168.22,26.4335]
[1641335180414,25.27082475,168.33,168.22,25.9335]
[1641335181716,1.3612,168.32,168.22,25.9335]
[1641335181913,1.8612,168.32,168.22,25.9335]
[1641335182117,2.1212,168.32,168.22,25.9335]
[1641335184216,25.9649,168.32,168.22,25.9335]
[1641335184714,25.9649,168.32,168.22,25.6735]
[1641335186018,25.4649,168.32,168.22,25.9335]
[1641335186616,25.4649,168.32,168.22,26.4335]
[1641335186815,25.4649,168.32,168.22,25.9335]
[1641335187217,25.4649,168.32,168.22,26.4335]
[1641335187416,25.4649,168.32,168.22,26.1735]
[1641335187618,25.4649,168.32,168.22,26.4335]
[1641335188519,25.4649,168.32,168.22,25.9335]
[1641335189521,25.4649,168.32,168.22,26.4335]
[1641335189923,25.9649,168.32,168.22,25.9335]
[1641335190925,25.9649,168.32,168.22,26.4335]
[1641335191822,25.9649,168.32,168.22,25.9335]
[1641335192421,27.41340786,168.32,168.22,25.6735]
[1641335192622,27.41340786,168.32,168.16,8.713]
[1641335192825,33.60341236,168.32,168.17,24.765]
[1641335193022,39.45598926,168.32,168.17,24.765]
[1641335193924,41.10230205,168.32,168.17,25.265]
[1641335194125,41.10230205,168.32,168.17,24.525]
[1641335194425,8.9213,168.31,168.17,24.525]
[1641335194627,8.9213,168.31,168.17,24.1713]
[1641335194827,1.44850786,168.3,168.17,24.1713]
[1641335195028,1.70850786,168.3,168.17,24.1713]
[1641335195226,9.96580762,168.29,168.18,1.2714]
[1641335195427,10.46580762,168.29,168.18,1.7714]
[1641335195626,10.72580762,168.29,168.18,1.7714]
[1641335195827,24.4749,168.28,168.18,1.7714]
[1641335196030,24.7349,168.28,168.18,1.7714]
[1641335196228,25.2349,168.28,168.18,1.7714]
[1641335197030,25.2349,168.28,168.18,2.0314]
[1641335197829,24.9749,168.28,168.18,2.0314]
[1641335199329,25.2349,168.28,168.18,2.0314]
[1641335200330,25.2349,168.28,168.18,1.7714]
[1641335203033,25.2349,168.28,168.18,2.0314]
[1641335203233,25.2349,168.28,168.18,1.7714]
[1641335208638,25.2349,168.28,168.18,2.0314]
[1641335209042,25.2349,168.28,168.18,1.7714]
[1641335209440,25.2349,168.28,168.18,0.5]
[1641335209638,25.2349,168.28,168.17,23.9113]
[1641335210042,25.2349,168.28,168.17,24.1713]
[1641335210442,25.2349,168.28,168.17,23.9113]
[1641335213969,25.2349,168.28,168.17,24.1713]
[1641335214769,26.68340786,168.28,168.17,23.6713]
[1641335214974,32.53598476,168.28,168.14,23.8176]
[1641335215169,41.73651054,168.28,168.14,23.8176]
[1641335215775,41.47651054,168.28,168.15,23.107]
[1641335215971,50.39941054,168.28,168.15,23.107]
[1641335216173,50.39941054,168.28,168.15,53.51642728]
[1641335216371,50.39941054,168.28,168.15,23.107]
[1641335216572,50.39941054,168.28,168.15,23.367]
[1641335216776,50.39941054,168.28,168.15,23.107]
[1641335216973,50.65941054,168.28,168.15,24.4209]
[1641335217573,44.80683364,168.28,168.15,24.4209]
[1641335218774,8.9235,168.27,168.15,24.4209]
[1641335219073,0.76,168.27,168.15,24.4209]
[1641335219276,1.44850786,168.26,168.15,24.4209]
[1641335219473,0.26,168.27,168.15,24.4209]
[1641335219878,0.26,168.27,168.15,24.6809]
[1641335220076,1.5261,168.27,168.15,24.6809]
[1641335220278,1.2661,168.27,168.15,24.6809]
[1641335220479,2.0261,168.27,168.15,24.6809]
[1641335223682,2.0261,168.27,168.15,24.4209]
[1641335223882,3.47460786,168.27,168.15,24.4209]
[1641335224283,24.51082475,168.25,168.15,24.4209]
[1641335224484,22.5499,168.24,168.15,24.4209]
[1641335224882,23.3099,168.24,168.15,24.4209]
[1641335225082,24.6494,168.24,168.15,24.4209]
[1641335227987,24.6494,168.24,168.15,24.9209]
[1641335228188,24.6494,168.24,168.15,24.4209]
[1641335228388,24.6494,168.24,168.15,24.9209]
[1641335228789,24.6494,168.24,168.15,24.4209]
[1641335231290,24.1494,168.24,168.15,24.6809]
[1641335231590,24.51082475,168.25,168.15,24.6809]
[1641335232392,2038.86475489,168.0,167.96,200.33369107]
[1641335232591,2036.86475489,168.0,167.99,71.28935883]
[1641335232791,2024.49484703,168.0,167.99,70.78935883]
[1641335232992,2024.49484703,168.0,167.99,90.6954943]
[1641335233193,2024.49484703,168.0,167.99,89.24698644]
[1641335233393,1990.94138043,168.0,167.99,90.6954943]
[1641335233792,1981.84498043,168.0,167.99,90.6954943]
[1641335234796,1972.92358043,168.0,167.99,90.6954943]
[1641335235398,1971.54328043,168.0,167.99,90.6954943]
[1641335235599,1970.52918043,168.0,167.99,90.6954943]
[1641335235799,1687.57928043,168.0,167.99,132.3685313]
[1641335236000,1673.38827455,168.0,167.99,90.6954943]
[1641335236202,1491.51508234,168.0,167.99,90.6954943]
[1641335236402,1490.38198234,168.0,167.99,90.6954943]
[1641335236602,1484.03858234,168.0,167.99,90.6954943]
[1641335237901,1473.98658234,168.0,167.99,90.6954943]
[1641335239736,1465.06458234,168.0,167.99,90.6954943]
[1641335240836,1456.14258234,168.0,167.99,90.6954943]
[1641335241237,1437.41968426,168.0,167.99,162.3801213]
[1641335241437,1382.08593983,168.0,167.99,90.6954943]
[1641335241636,1349.77123444,168.0,167.99,96.09282947]
[1641335241838,1340.85033444,168.0,167.99,96.09282947]
[1641335242740,1311.11583444,168.0,167.99,111.78893847]
[1641335242938,1311.11583444,168.0,167.99,96.09282947]
[1641335243549,1302.07473444,168.0,167.99,96.09282947]
[1641335243740,1263.41973444,168.0,167.99,96.09282947]
[1641335244741,1199.28753444,168.0,167.99,119.86739147]
[1641335244944,1161.65913444,168.0,167.99,96.09282947]
[1641335245341,1152.73833444,168.0,167.99,96.09282947]
[1641335245744,1152.73833444,168.0,167.99,90.6954943]
[1641335246344,1143.81693444,168.0,167.99,90.6954943]
[1641335247547,1134.89563444,168.0,167.99,90.6954943]
[1641335248745,1125.97433444,168.0,167.99,90.6954943]
[1641335249147,1092.42275546,168.0,167.99,106.9921043]
[1641335249349,1092.42275546,168.0,167.99,90.6954943]
[1641335249755,1083.50145546,168.0,167.99,90.6954943]
[1641335250552,1082.01145546,168.0,167.99,90.6954943]
[1641335250752,1073.09015546,168.0,167.99,90.6954943]
[1641335251553,1071.38015546,168.0,167.99,90.6954943]
[1641335251852,1062.45885546,168.0,167.99,90.6954943]
[1641335252253,1053.47735546,168.0,167.99,131.9044053]
[1641335252455,1053.47735546,168.0,167.99,120.4308943]
[1641335252658,992.75735546,168.0,167.99,120.4308943]
[1641335252855,912.99725546,168.0,167.99,120.4308943]
[1641335253056,902.87725546,168.0,167.99,120.4308943]
[1641335254057,893.99585546,168.0,167.99,120.4308943]
[1641335254859,885.07505546,168.0,167.99,120.4308943]
[1641335255360,866.22505546,168.0,167.99,120.4308943]
[1641335255958,866.22505546,168.0,167.99,168.1197393]
[1641335256159,866.22505546,168.0,167.99,136.3262303]
[1641335256360,866.22505546,168.0,167.99,120.4308943]
[1641335256761,857.30445546,168.0,167.99,120.4308943]
[1641335257177,848.42905546,168.0,167.99,145.6503313]
[1641335257578,844.07815546,168.0,167.99,120.4308943]
[1641335258778,835.15755546,168.0,167.99,120.4308943]
[1641335259277,834.38065546,168.0,167.99,120.4308943]
[1641335259578,689.51498226,168.0,167.99,90.6954943]
[1641335259779,502.19988226,168.0,167.99,142.1574943]
[1641335259977,490.6313744,168.0,167.99,142.1574943]
[1641335260177,481.7109744,168.0,167.99,90.6954943]
[1641335260377,471.5909744,168.0,167.99,90.6954943]
[1641335261677,462.6556744,168.0,167.99,90.6954943]
[1641335261879,453.7352744,168.0,167.99,90.6954943]
[1641335262279,444.7497744,168.0,167.99,90.6954943]
[1641335262878,435.8293744,168.0,167.99,90.6954943]
[1641335264281,427.8073744,168.0,167.99,90.6954943]
[1641335264484,413.3015744,168.0,167.99,90.6954943]
[1641335264682,370.8289832,168.0,167.99,90.6954943]
[1641335265889,332.1774832,168.0,167.99,90.6954943]
[1641335266586,323.6152832,168.0,167.99,90.6954943]
[1641335266787,278.9156832,168.0,167.99,90.6954943]
[1641335267889,240.2641832,168.0,167.99,90.6954943]
[1641335268990,167.7371832,168.0,167.99,90.6954943]
[1641335269192,78.7415,168.12,168.01,57.89]
[1641335269397,25.1079,168.24,168.01,81.9645]
[1641335269593,25.1079,168.24,168.03,57.89]
[1641335269794,25.1079,168.24,168.05,57.89]
[1641335269997,25.1079,168.24,168.07,57.89]
[1641335270196,28.63075087,168.23,168.04,30.76829711]
[1641335270395,28.63075087,168.23,168.05,59.39]
[1641335270998,23.0748,168.22,168.05,83.949]
[1641335271697,1.2868,168.21,168.05,83.949]
[1641335272097,1.2868,168.21,168.05,93.43384814]
[1641335274403,79.4695,168.21,168.05,93.43384814]
[1641335275110,30.52823165,168.19,168.05,93.43384814]
[1641335275306,22.978,168.18,168.05,93.43384814]
[1641335275706,22.978,168.18,168.06,1.44850786]
[1641335275930,1.2388,168.17,168.06,1.44850786]
[1641335276134,1.2388,168.17,168.07,9.48484814]
[1641335276331,1.2388,168.17,168.08,86.63183774]
[1641335276531,1.2388,168.17,168.08,88.0803456]
[1641335276732,1.2388,168.17,168.1,59.39]
[1641335276931,1.2388,168.17,168.1,59.89]
[1641335277132,1.2388,168.17,168.11,1.44850786]
[1641335277331,1.2388,168.17,168.11,1.94850786]
[1641335277731,1.2388,168.17,168.12,1.44850786]
[1641335277931,1.2388,168.17,168.12,1.94850786]
[1641335278333,1.2388,168.17,168.13,1.44850786]
[1641335278737,1.2388,168.17,168.13,1.94850786]
[1641335279937,1.2388,168.17,168.14,1.44850786]
[1641335280141,0.02,168.2,168.15,0.50197092]
[1641335280340,1.2761,168.2,168.15,0.50197092]
[1641335280538,1.2761,168.2,168.15,1.95047878]
[1641335280838,1.2761,168.2,168.15,2.45047878]
[1641335281046,1.2761,168.2,168.15,2.71047878]
[1641335281246,1.2561,168.2,168.15,2.71047878]
[1641335284540,1.2561,168.2,168.15,2.45047878]
[1641335285143,1.2561,168.2,168.15,1.95047878]
[1641335286644,1.2561,168.2,168.15,2.71047878]
[1641335289346,1.2561,168.2,168.15,2.45047878]
[1641335290149,1.2561,168.2,168.13,8.8639]
[1641335290349,1.2699,168.3,168.13,9.3639]
[1641335290548,20.057,168.26,168.13,21.15849683]
[1641335290747,20.057,168.26,168.14,5.75854985]
[1641335290949,20.057,168.26,168.14,16.3466927]
[1641335291147,1.2427,168.25,168.15,11.79459683]
[1641335291349,1.2427,168.25,168.16,59.39]
[1641335291548,1.2427,168.25,168.16,60.83850786]
[1641335291948,1.2427,168.25,168.16,71.44459683]
[1641335292347,1.2427,168.25,168.16,71.94459683]
[1641335293147,1.2427,168.25,168.17,1.44850786]
[1641335293349,1.2427,168.25,168.17,1.94850786]
[1641335293547,1.2427,168.25,168.17,2.20850786]
[1641335293748,1.2427,168.25,168.18,1.44850786]
[1641335293948,1.2427,168.25,168.18,2.20850786]
[1641335294148,1.2427,168.25,168.18,0.76]
[1641335294351,1.2427,168.25,168.18,1.70850786]
[1641335294847,1.2427,168.25,168.18,2.20850786]
[1641335295849,1.2427,168.25,168.19,59.39]
[1641335296050,1.2427,168.25,168.19,59.65]
[1641335296250,1.2427,168.25,168.19,60.15]
[1641335300854,1.2427,168.25,168.2,1.44850786]
[1641335301154,1.2427,168.25,168.2,1.70850786]
[1641335301354,1.2427,168.25,168.2,2.20850786]
[1641335302185,1.2427,168.25,168.21,1.44850786]
[1641335302358,1.2427,168.25,168.21,1.94850786]
[1641335302559,1.2427,168.25,168.21,2.20850786]
[1641335307564,1.2427,168.25,168.22,1.44850786]
[1641335307964,1.2427,168.25,168.22,2.20850786]
[1641335308668,1.2427,168.25,168.22,1.94850786]
[1641335309068,1.2427,168.25,168.22,0.5]
[1641335309269,1.2427,168.25,168.19,60.83850786]
[1641335309270,1.2427,168.25,168.19,61.33850786]
[1641335309994,1.2427,168.25,168.19,61.59850786]
[1641335323215,1.2427,168.25,168.19,61.33850786]
[1641335324616,1.2427,168.25,168.19,61.59850786]
[1641335340756,0.26855449,187.08,168.35,2125.9538]
[1641335340956,103.72931941,168.43,168.35,2125.9538]
[1641335341155,1.64631279,168.36,168.35,2125.9538]
[1641335342157,4.67654183,168.36,168.35,2125.9538]
[1641335342356,7.70874179,168.36,168.35,2125.9538]
[1641335342956,7.70874179,168.36,168.35,1852.0521]
[1641335345562,7.70874179,168.36,168.35,1774.0403]
[1641335349265,4.67654183,168.36,168.35,1774.0403]
[1641335350166,1.64631279,168.36,168.35,1774.0403]
[1641335350368,1.64631279,168.36,168.35,1774.3003]
[1641335350567,1.64631279,168.36,168.35,1774.0403]
[1641335351368,1.64631279,168.36,168.35,1774.3003]
[1641335351769,1.64631279,168.36,168.35,1774.0403]
[1641335351969,1.66631279,168.37,168.35,1774.3003]
[1641335354378,1.279e-05,168.37,168.35,1774.3003]
[1641335354577,1.279e-05,168.37,168.35,1774.8003]
[1641335355078,23.4081,168.39,168.35,1774.8003]
[1641335355377,496.13672303,168.45,168.35,1774.8003]
[1641335355576,1.301,168.44,168.35,1774.8003]
[1641335358677,23.4716,168.48,168.45,1668.8378]
[1641335358878,3.03219996,168.47,168.45,1668.8378]
[1641335359080,3.03022904,168.46,168.45,1668.8378]
[1641335360079,3.03219996,168.47,168.45,1668.8378]
[1641335360281,6.082429,168.47,168.45,1668.8378]
[1641335361882,109.62207019,168.51,168.5,1662.755371]
[1641335362084,108.28627019,168.51,168.5,1662.755371]
[1641335362282,108.78627019,168.51,168.5,1662.755371]
[1641335363586,109.04627019,168.51,168.5,1662.755371]
[1641335365687,108.78627019,168.51,168.5,1662.755371]
[1641335366689,22.5075,168.54,168.5,1662.755371]
[1641335366889,4.65140816,168.56,168.55,991.03105468]
[1641335367093,3.35170816,168.56,168.55,991.03105468]
[1641335367893,38.27124873,168.57,168.55,991.03105468]
[1641335368292,38.29124873,168.57,168.55,991.03105468]
[1641335368995,29.38384873,168.57,168.55,991.03105468]
[1641335369193,13.88551602,168.57,168.55,991.03105468]
[1641335370434,10.53380786,168.57,168.55,991.03105468]
[1641335376867,10.53380786,168.57,168.56,3.03219997]
[1641335377570,10.53380786,168.57,168.55,994.06325465]
[1641335377768,1.46850786,168.57,168.55,991.03105468]
[1641335378167,1.46850786,168.57,168.55,994.06325465]
[1641335378367,1.46850786,168.57,168.55,991.03105468]
[1641335380371,60.973371,168.67,168.56,6.06439994]
[1641335380669,60.973371,168.67,168.49,0.02]
[1641335380670,1.44850786,168.56,168.49,0.02]
[1641335381272,1.44850786,168.56,168.46,24.4907]
[1641335382270,1.44850786,168.56,168.47,1.3549]
[1641335382472,1.44850786,168.56,168.47,1.6149]
[1641335384779,1.44850786,168.59,168.47,1.6149]
[1641335384975,1.44850786,168.59,168.47,2.1149]
[1641335391885,22.8741,168.61,168.47,2.1149]
[1641335393188,3.35170816,168.65,168.47,2.1149]
[1641335393387,3.35170816,168.65,168.48,23.6256]
[1641335393587,3.35170816,168.65,168.48,23.8856]
[1641335393789,3.35170816,168.65,168.48,24.3856]